Cogmind - Beta 14 @@@ ROGUE MODE // 2024.11.17 @ 21:46:36 Player: Fangrelle Result: Self-destructed Performance ------------- Evolutions (3) 1500 Regions Visited (8) 1600 Robots Destroyed (91) 455 Value Destroyed (4278) 4278 Prototype IDs (27) 540 Alien Tech Used (0) 0 Bonus (1621) 1621 TOTAL SCORE: 9994 Bonus ------- High Alert Combat Kills 481 Follower Combat Kills 140 Entered Garrisons 200 Used RIF Installer 500 Aligned with FarCom 300 Cogmind --------- Core Integrity 168/700 Matter 9/300 Energy 159/800 System Corruption 12% Temperature Cool (0) Movement Core (850) Ox16 Location -7/Storage Parts ------- > --- POWER (1) -------- Hybrid Deuterium Engine > --- PROPULSION (5) --- (None) > --- UTILITY (5) ------ High-capacity Storage Unit > --- WEAPON (2) ------- Chainsword > --- INVENTORY (20) --- Hybrid Deuterium Engine Huge Storage Unit Advanced Weight Redist. System Transmission Jammer Advanced ECM Suite Relay Coupler [Demolisher] (25) Relay Coupler [Demolisher] (25) Relay Coupler [Specialist] (23) Relay Coupler [Behemoth] (8) Relay Coupler [Behemoth] (9) Long-range Tractor Beam Advanced Field Recycling Unit (0) Disruptor Cannon Remote Datajack Peak State ------------ > --- POWER ------------ Cooled Deuterium Engine > --- PROPULSION ------- Field Propulsion Drive Flying Fortress v7 > --- UTILITY ---------- Huge Storage Unit Advanced Weight Redist. System Transmission Jammer System Shield Relay Coupler [NC] > --- WEAPON ----------- Disruptor Cannon Chainsword > --- INVENTORY -------- Hybrid Deuterium Engine Hybrid Deuterium Engine Cooled Deuterium Engine Gravmag System Gravmag System High-capacity Storage Unit Force Booster Hardened Heavy Armor Plating Improved Light Armor Plating Relay Coupler [NC] Relay Coupler [NC] Relay Coupler [Duelist] Relay Coupler [Demolisher] Relay Coupler [Demolisher] Relay Coupler [Specialist] Relay Coupler [Hunter] Relay Coupler [Behemoth] Relay Coupler [Behemoth] Long-range Tractor Beam Advanced Field Recycling Unit Remote Datajack Power Sword [Rating: 74] Favorites ----------- Power Ion Engine Engine Ion Engine Power Core Micro Fission Core Propulsion Armored Huge Wheel Treads Light Treads Leg Aluminum Leg Wheel Armored Huge Wheel Flight Unit Flying Fortress v7 Utility High-capacity Storage Unit Device Advanced Weight Redist. System Storage High-capacity Storage Unit Processor Visual Processing Unit Hackware Hacking Suite Protection Hardened Medium Armor Plating Weapon Flak Gun Energy Gun Small Laser Energy Cannon Disruptor Cannon Ballistic Gun Flak Gun Ballistic Cannon Assault Cannon Launcher Grenade Launcher Special Weapon Plasma Cutter Slashing Weapon Katana Special Melee Weapon Datajack Build | -11 -10 -10 -10 -9 -8 -8 -7 -7 ------- Run | Yrd Mat Min Exi Min Mat Gar Fac Sto Slots Evolved 6 | . . . . . 4 . 2 . Power . | . . . . . . . . . Propulsion 3 | . . . . . 2 . 1 . Utility 3 | . . . . . 2 . 1 . Weapon . | . . . . . . . . . Parts Attached 158 | . 6 . . 1 38 44 53 16 Power 12 | . . . . . 6 2 2 2 Engine 10 | . . . . . 6 1 1 2 Core 2 | . . . . . . 1 1 . Reactor . | . . . . . . . . . Propulsion 27 | . 3 . . . 8 7 7 2 Treads 7 | . 3 . . . 4 . . . Leg . | . . . . . . . . . Wheel 8 | . . . . . 3 5 . . Hover . | . . . . . . . . . Flight 12 | . . . . . 1 2 7 2 Utility 58 | . 2 . . . 9 11 26 10 Device 11 | . . . . . 1 2 6 2 Storage 7 | . 1 . . . . 1 3 2 Processor 3 | . 1 . . . . 1 1 . Hackware 14 | . . . . . 3 4 6 1 Protection 23 | . . . . . 5 3 10 5 Artifact . | . . . . . . . . . Weapon 61 | . 1 . . 1 15 24 18 2 Energy Gun 1 | . . . . . . . 1 . Energy Cannon 3 | . . . . . . . 3 . Ballistic Gun 16 | . . . . . 9 7 . . Ballistic Cannon 2 | . . . . . 1 1 . . Launcher 2 | . 1 . . 1 . . . . Special Weapon 7 | . . . . . . 2 4 1 Impact Weapon . | . . . . . . . . . Slashing Weapon 24 | . . . . . 3 10 10 1 Piercing Weapon . | . . . . . . . . . Special Melee Weapon 6 | . . . . . 2 4 . . Unidentified Prototypes 4 | . . . . . 1 . 3 . Parts Lost 24 | . . . . . 4 8 2 10 Power 2 | . . . . . . 1 . 1 Propulsion 9 | . . . . . 4 1 1 3 Utility 9 | . . . . . . 3 1 5 Weapon 4 | . . . . . . 3 . 1 Highest Loss Streak 8 | . . . . . 2 2 1 8 To Critical Strikes 1 | . . . . . . . . 1 Average Slot Usage (%) 83 | . 93 100 100 100 81 80 74 61 Engine 8 | . 14 14 14 14 9 6 5 2 Core 1 | . . . . . . 2 1 4 Treads 8 | . 28 28 28 28 9 . . . Wheel 7 | . . . . . 9 17 . . Flight 3 | . . . . . . 1 13 9 Device 1 | . . . . . . 2 6 5 Storage 9 | . 14 14 14 14 9 9 7 7 Processor 3 | . 8 14 14 14 . 1 1 . Hackware 14 | . . . . . 19 18 18 10 Protection 3 | . . . . . 6 3 3 5 Energy Gun 2 | . 14 14 14 8 . . . . Ballistic Gun 5 | . 9 . . . 10 4 . . Ballistic Cannon 1 | . . . . . 3 . . . Launcher 2 | . 4 14 14 19 . . . . Special Weapon 1 | . . . . . . 3 3 2 Slashing Weapon 5 | . . . . . 2 7 10 11 Peak Build Rating 74 | . 9 9 13 13 50 48 74 68 Average Rating 38 | . 7 9 11 13 34 43 69 51 On Entrance 22 | 6 6 9 9 13 13 43 39 67 Naked Turns . | . . . . . . . . . Heaviest Build 122 | 12 49 49 49 51 65 63 106 122 Greatest Support 66 | 20 40 40 40 40 62 56 66 64 Greatest Overweight (x) 30 | . 1 1 1 1 5 1 1 30 Average Overweight (x) . | . . 1 1 1 1 . . . Largest Inventory Capacity 25 | . 20 20 20 20 20 20 25 25 Average Capacity 19 | . 17 20 20 20 20 20 20 21 Most Carried 23 | . 13 13 20 20 20 20 23 21 Average Carried 18 | . 7 13 17 19 19 19 19 18 Final Capacity 20 | 8 20 20 20 20 20 20 20 20 Final Carried 20 | 6 13 13 20 20 20 20 19 14 Class Distribution -------------------- 46% | Hacker-Mutant 36% | Mutant 14% | Bothacker-Mutant Dominant Class ---------------- Mutant | -10/Materials Mutant | -10/Mines Mutant | -10/Exiles Mutant | -9/Mines Hacker-Mutant | -8/Materials Hacker-Mutant | -8/Garrison Bothacker-Mutant | -7/Factory Bothacker-Mutant | -7/Storage Resources | -11 -10 -10 -10 -9 -8 -8 -7 -7 ----------- Run | Yrd Mat Min Exi Min Mat Gar Fac Sto Matter Collected 2717 | 162 177 . . 40 704 997 637 . Remotely . | . . . . . . . . . Salvage Created 3231 | . 475 . . 33 1008 1030 538 147 Parts 197 | . 37 . . 7 63 51 33 6 Haulers Intercepted 5 | . 2 . . . 2 1 . . Recyclers Shooed 1 | . 1 . . . . . . . Parts Field Recycled . | . . . . . . . . . Retrieved Matter . | . . . . . . . . . Parts Self-Destructed . | . . . . . . . . . Prevented . | . . . . . . . . . Kills | -11 -10 -10 -10 -9 -8 -8 -7 -7 ------- Run | Yrd Mat Min Exi Min Mat Gar Fac Sto Combat Hostiles Destroyed 70 | . 9 . . 3 25 21 10 2 Melee 30 | . . . . . 7 11 10 2 Guns 30 | . 8 . . . 14 8 . . Cannons 6 | . . . . . 4 2 . . AOE 4 | . 1 . . 3 . . . . Classes Destroyed 14 | . 6 . . 1 3 3 1 . Worker 3 | . . . . 1 2 . . . Builder 1 | . . . . . 1 . . . Hauler 5 | . 2 . . . 2 1 . . Recycler 4 | . 1 . . . 2 . . 1 Mechanic 1 | . . . . . 1 . . . Operator 2 | . 1 . . . 1 . . . Watcher 5 | . 2 . . . 2 . 1 . Swarmer 22 | . 3 . . 3 10 4 . 2 Cutter 2 | . . . . . . 2 . . Grunt 25 | . 6 . . . 7 7 5 . Brawler 3 | . . . . . . 3 . . Duelist 2 | . . . . . . 2 . . Sentry 11 | . . . . . 8 3 . . Programmer 5 | . . . . . . . 5 . Best Kill Streak 8 | . 8 . . 4 6 4 3 3 Combat Bots Only 4 | . 3 . . 3 4 4 3 2 Max Kills in Single Turn 2 | . 1 . . 2 1 1 1 1 Gunslinging . | . . . . . . . . . Exploded 1 | . 1 . . 1 . . . . Melee 1 | . . . . . 1 1 1 1 Uniques/NPCs Destroyed . | . . . . . . . . . Combat | -11 -10 -10 -10 -9 -8 -8 -7 -7 -------- Run | Yrd Mat Min Exi Min Mat Gar Fac Sto Hostile Shots Fired 661 | . 43 . . 3 148 181 121 165 Missed 191 | . 12 . . 2 34 55 43 45 Damage Taken 6874 | . 328 . . 77 1372 2089 1173 1835 Core 1125 | . 49 . . 3 181 360 147 385 Absorbed by Shields 134 | . . . . . . 134 . . Redirected to Shielding 22 | . . . . . 22 . . . Regen/Repaired (Parts) 82 | . . . . . . . 82 . Core Remaining (%) 60 | 100 . . . 79 . 1 . . Volleys Fired 213 | . 53 . . 3 63 50 41 3 Largest 2 | . 2 . . 1 2 2 1 1 Hottest 81 | . 70 . . 30 72 56 81 5 Shots Fired 346 | . 101 . . 3 122 76 41 3 Gun 255 | . 98 . . . 98 59 . . Cannon 45 | . . . . . 24 17 4 . Launcher 6 | . 3 . . 3 . . . . Special 40 | . . . . . . . 37 3 Kinetic 247 | . 49 . . . 122 76 . . Thermal 49 | . 49 . . . . . . . Explosive 6 | . 3 . . 3 . . . . Electromagnetic 4 | . . . . . . . 4 . Robot Hit Streak 13 | . 10 . . . 11 13 11 6 Robot Miss Streak 12 | . 4 . . . 9 12 3 1 Penetration Max . | . . . . . . . . . Secondary Targets 2 | . 1 . . . 1 . . . Max Gunslinging Chain 1 | . 1 . . . 1 . . . Shots Hit Robots 345 | . 55 . . . 111 118 48 13 Core Hits 219 | . 28 . . 4 74 99 11 3 Critical Kills . | . . . . . . . . . Critical Parts Destroyed 1 | . 1 . . . . . . . Critical Strikes 20 | . 1 . . . 6 8 2 3 Destroy 2 | . 1 . . . 1 . . . Blast 3 | . . . . . 3 . . . Sever 15 | . . . . . 2 8 2 3 Melee Attacks 193 | . . . . . 40 78 56 19 Impact . | . . . . . . . . . Slashing 193 | . . . . . 40 78 56 19 Piercing . | . . . . . . . . . Sneak Attacks 10 | . . . . . 7 . 2 1 Combat Hostiles 2 | . . . . . . . 2 . Follow-up Attacks 10 | . . . . . . 1 6 3 Damage Inflicted 7779 | . 659 . . 179 2735 2752 973 481 Guns 2791 | . 551 . . . 1335 905 . . Cannons 662 | . . . . . 395 230 37 . Explosions 287 | . 108 . . 179 . . . . Melee 4021 | . . . . . 987 1617 936 481 Ramming 18 | . . . . . 18 . . . Kinetic 3115 | . 250 . . . 1730 1135 . . Thermal 301 | . 301 . . . . . . . Explosive 287 | . 108 . . 179 . . . . Electromagnetic 37 | . . . . . . . 37 . Impact . | . . . . . . . . . Slashing 4021 | . . . . . 987 1617 936 481 Piercing . | . . . . . . . . . Highest Corruption 12 | . . . . . . . 11 12 Average Corruption 8 | . . . . . . . 8 11 Corruption Purged . | . . . . . . . . . Corruption Blocked . | . . . . . . . . . Effects 60 | . . . . . . . 51 9 Message Errors 18 | . . . . . . . 14 4 Matter Fused 12 | . . . . . . . 11 1 Heat Flow Errors 7 | . . . . . . . 6 1 Energy Discharges 9 | . . . . . . . 7 2 Parts Fused 3 | . . . . . . . 2 1 Data Loss (minor) 7 | . . . . . . . 7 . Data Loss (major) 2 | . . . . . . . 2 . Alerts 2 | . . . . . . . 2 . Overload Shots . | . . . . . . . . . Overflow Damage 275 | . . . . 12 92 29 90 52 Projectiles 2 | . . . . . 2 . . . Explosions 12 | . . . . 12 . . . . Melee 261 | . . . . . 90 29 90 52 Knockbacks 4 | . . . . . 2 2 . . Impact . | . . . . . . . . . Kinetic 4 | . . . . . 2 2 . . Secondary . | . . . . . . . . . Self-Inflicted Damage 68 | . . . . 68 . . . . Shots 3 | . . . . 3 . . . . Rammed 1 | . . . . . 1 . . . Targets Rammed 1 | . . . . . 1 . . . Kicked . | . . . . . . . . . Crushed . | . . . . . . . . . Highest Temperature 245 | . 88 . . . 135 16 245 224 Average Temperature 47 | . 25 . . . 32 8 85 112 Received Heat Transfer 2311 | . 126 . . . 504 646 411 624 Siege Activations . | . . . . . . . . . Robots Corrupted . | . . . . . . . . . Combat Hostiles . | . . . . . . . . . Parts Fried . | . . . . . . . . . Impact Corruptions . | . . . . . . . . . Robots Melted . | . . . . . . . . . Combat Hostiles . | . . . . . . . . . Parts Melted . | . . . . . . . . . Heat Transferred 675 | . 675 . . . . . . . Parts Sabotaged . | . . . . . . . . . Parts Stolen . | . . . . . . . . . Parts Stripped . | . . . . . . . . . Power Chain Reactions . | . . . . . . . . . Alert | -11 -10 -10 -10 -9 -8 -8 -7 -7 ------- Run | Yrd Mat Min Exi Min Mat Gar Fac Sto Peak Influence 1781 | . 238 . . 107 296 1781 1010 455 Initial 924 | . . . . . 41 192 924 377 Average 494 | . 109 . . 35 173 811 887 416 Maximum Alert Level 5 | . 1 . . . 1 5 3 2 Low Security (%) 31 | . 76 100 . 100 54 1 . . Level 1 21 | . 23 . . . 45 11 . 21 Level 2 11 | . . . . . . 32 . 78 Level 3 29 | . . . . . . 32 100 . Level 4 4 | . . . . . . 13 . . Level 5 2 | . . . . . . 8 . . High Security . | . . . . . . . . . Max Security . | . . . . . . . . . Squads Dispatched 10 | . 1 . . . 3 . 6 . Investigation 3 | . . . . . 2 . 1 . Extermination 4 | . . . . . . . 4 . Reinforcement 3 | . 1 . . . 1 . 1 . Assault . | . . . . . . . . . Garrison . | . . . . . . . . . Intercept . | . . . . . . . . . Searches Triggered . | . . . . . . . . . Construction Impeded . | . . . . . . . . . Haulers Reinforced . | . . . . . . . . . Active Scanning Responses . | . . . . . . . . . Cargo Convoy Interrupts . | . . . . . . . . . Stealth | -11 -10 -10 -10 -9 -8 -8 -7 -7 --------- Run | Yrd Mat Min Exi Min Mat Gar Fac Sto Distress Signals 2 | . 1 . . . . . . 1 Communications Jammed . | . . . . . . . . . Distress Signals . | . . . . . . . . . Times Spotted 132 | . 19 . . 3 42 27 29 12 Peak Tracking Total 10 | . 6 . . 4 5 4 5 10 Tactical Retreats 8 | . 1 . . 1 3 1 1 1 Traps | -11 -10 -10 -10 -9 -8 -8 -7 -7 ------- Run | Yrd Mat Min Exi Min Mat Gar Fac Sto Traps Triggered 3 | . . . . . 1 1 . 1 Indirectly . | . . . . . . . . . Trap Hack Attempts 67 | . . . . . 9 58 . . Triggered 2 | . . . . . . 2 . . Disarmed . | . . . . . . . . . Reprogrammed 15 | . . . . . 3 12 . . Reused 4 | . . . . . . 4 . . Traps Extracted 3 | . . . . . 3 . . . Installed 3 | . . . . . . 3 . . Triggered 4 | . . . . . . 4 . . Most Traps Carried 3 | . . . . . 3 3 . . Objects Rigged 1 | . . . . . 1 . . . Machines | -11 -10 -10 -10 -9 -8 -8 -7 -7 ---------- Run | Yrd Mat Min Exi Min Mat Gar Fac Sto Machines Disabled 14 | . . . . . 2 11 . 1 Max in Single Turn 1 | . . . . . 1 1 . 1 Garrison Access 2 | . . . . . . . 2 . Garrison Relay 8 | . . . . . . 8 . . Phase Generator 1 | . . . . . . 1 . . Machines Repaired . | . . . . . . . . . Machines Dismantled 9 | . . . . . . 9 . . Machines Sabotaged . | . . . . . . . . . Overloaded Fab Kills . | . . . . . . . . . Hacking | -11 -10 -10 -10 -9 -8 -8 -7 -7 --------- Run | Yrd Mat Min Exi Min Mat Gar Fac Sto Machines Accessed 37 | . 4 . 2 . 13 3 13 2 Terminals 23 | . 4 . . . 9 3 5 2 Fabricators 1 | . . . . . . . 1 . Repair Stations 2 | . . . . . . . 2 . Recycling Units 4 | . . . . . 2 . 2 . Scanalyzers 2 | . . . . . 1 . 1 . Garrison Access 3 | . . . . . 1 . 2 . Total Hacks 141 | . 15 . 5 . 66 8 44 3 Successful 86 | . 6 . 5 . 44 5 25 1 Failed 55 | . 9 . . . 22 3 19 2 Catastrophic 2 | . . . . . . . 1 1 Database Lockouts . | . . . . . . . . . Manual 107 | . 15 . 1 . 53 6 29 3 Terminals 104 | . 15 . . . 57 8 21 3 Fabricators 3 | . . . . . . . 3 . Repair Stations 5 | . . . . . . . 5 . Recycling Units 16 | . . . . . 6 . 10 . Scanalyzers 3 | . . . . . 2 . 1 . Garrison Access 5 | . . . . . 1 . 4 . Terminal Hacks 15 | . . . 5 . 9 1 . . Record 4 | . . . 4 . . . . . Robot Analysis 2 | . . . . . 2 . . . Terminal Index 1 | . . . . . 1 . . . Alert Level 2 | . . . . . 2 . . . Unreport Threat 2 | . . . . . 2 . . . Hauler Manifests 1 | . . . . . 1 . . . Zone Layout 1 | . . . . . 1 . . . Patrol Navigation 1 | . . . . . . 1 . . Derelict Proto ID Bank 1 | . . . 1 . . . . . Fabricator Hacks . | . . . . . . . . . Repair Station Hacks 2 | . . . . . . . 2 . Scan Component 1 | . . . . . . . 1 . Repair 1 | . . . . . . . 1 . Recycling Unit Hacks 6 | . . . . . 2 . 4 . Report Inventory 3 | . . . . . 1 . 2 . Retrieve Components 3 | . . . . . 1 . 2 . Scanalyzer 2 | . . . . . 2 . . . Insert Component 1 | . . . . . 1 . . . Analyze 1 | . . . . . 1 . . . Garrison Access Hacks 5 | . . . . . 1 . 4 . Unlock Access 1 | . . . . . 1 . . . Seal Access 2 | . . . . . . . 2 . Coupler Status 2 | . . . . . . . 2 . Unauthorized Hacks 56 | . 6 . . . 30 4 15 1 Terminals 51 | . 6 . . . 29 4 11 1 Track 2 | . . . . . 2 . . . Assimilate 9 | . 1 . . . 7 . 1 . Botnet 21 | . 4 . . . 8 3 5 1 Detonate 2 | . . . . . 2 . . . Disrupt 4 | . . . . . 3 1 . . Operators 5 | . 1 . . . 2 . 2 . Skim 8 | . . . . . 5 . 3 . Fabricators . | . . . . . . . . . Repair Stations 1 | . . . . . . . 1 . Mechanics 1 | . . . . . . . 1 . Recycling Units 4 | . . . . . 1 . 3 . Reject 2 | . . . . . . . 2 . Mask 1 | . . . . . . . 1 . Tunnel 1 | . . . . . 1 . . . Scanalyzers . | . . . . . . . . . Garrison Access . | . . . . . . . . . Data Cores Recovered . | . . . . . . . . . Used . | . . . . . . . . . Hacking Detections 29 | . 4 . . . 11 3 10 1 Full Trace Events 1 | . . . . . . . 1 . Feedback Events . | . . . . . . . . . Feedback Blocked . | . . . . . . . . . Robot Schematics Acquired . | . . . . . . . . . Robots Built . | . . . . . . . . . Authchips . | . . . . . . . . . Time . | . . . . . . . . . Total Robot Build Rating . | . . . . . . . . . Part Schematics Acquired 1 | . . . . . 1 . . . Parts Built . | . . . . . . . . . Authchips . | . . . . . . . . . Time . | . . . . . . . . . Total Part Build Rating . | . . . . . . . . . Parts Repaired 1 | . . . . . . . 1 . Time 50 | . . . . . . . 50 . Parts Recycled . | . . . . . . . . . Recycled Matter . | . . . . . . . . . Retrieved Matter . | . . . . . . . . . Retrieved Components 20 | . . . . . 9 . 11 . Parts Scanalyzed 1 | . . . . . 1 . . . Part Schematics Acquired 1 | . . . . . 1 . . . Parts Damaged . | . . . . . . . . . Bothacking | -11 -10 -10 -10 -9 -8 -8 -7 -7 ------------ Run | Yrd Mat Min Exi Min Mat Gar Fac Sto Used RIF Installer 1 | . . . . . . 1 . . Robots Hacked 11 | . . . . . . . 10 1 Non-combat 4 | . . . . . . . 3 1 Combat 7 | . . . . . . . 7 . Robot Hacks Applied 14 | . . . . . . . 13 1 parse_system 1 | . . . . . . . 1 . overload_power 1 | . . . . . . . 1 . amplify_resonance 2 | . . . . . . . 2 . formatsys_low 1 | . . . . . . . 1 . formatsys_high 9 | . . . . . . . 8 1 Relay Couplers Released 32 | . . . . . . 32 . . Machine Destruction 32 | . . . . . . 32 . . Attached 9 | . . . . . . 3 5 1 Fabnet Peak Effective % . | . . . . . . . . . Robots Rewired . | . . . . . . . . . Allies Hacked . | . . . . . . . . . Hacks Repelled . | . . . . . . . . . Allies | -11 -10 -10 -10 -9 -8 -8 -7 -7 -------- Run | Yrd Mat Min Exi Min Mat Gar Fac Sto Total Allies 11 | . . . . . 1 . 9 1 Largest Group 4 | . . . . . 1 1 4 2 Highest-Rated Group 93 | . . . . . 10 10 93 40 Highest-Rated Ally 32 | . . . . . 10 10 32 26 Total Orders 24 | . . . . . 2 13 9 . STAY 11 | . . . . . 1 7 3 . FOLLOW 10 | . . . . . 1 6 3 . AID 3 | . . . . . . . 3 . Ally Attacks 17 | . . . . . . . 17 . Total Damage 442 | . . . . . . . 442 . Kills 4 | . . . . . . . 4 . Allies Corrupted . | . . . . . . . . . Allies Melted 1 | . . . . . . . 1 . Intel | -11 -10 -10 -10 -9 -8 -8 -7 -7 ------- Run | Yrd Mat Min Exi Min Mat Gar Fac Sto Robot Analysis Total 2 | . . . . . 2 . . . Derelict Logs Recovered . | . . . . . . . . . Drone Launches . | . . . . . . . . . Drone Recoveries . | . . . . . . . . . Exploration | -11 -10 -10 -10 -9 -8 -8 -7 -7 ------------- Run | Yrd Mat Min Exi Min Mat Gar Fac Sto Turns Passed 9635 | . 973 77 645 321 3009 2694 1740 176 Spaces Moved 6039 | 1 346 33 268 128 1216 1792 2120 135 Core . | . . . . . . . . . Treads 1129 | . 346 33 268 128 354 . . . Legs 1 | 1 . . . . . . . . Wheels 2422 | . . . . . 630 1792 . . Hover . | . . . . . . . . . Flight 2487 | . . . . . 232 . 2120 135 Fastest Speed 39 | 120 160 240 240 240 50 93 39 39 Average Speed 111 | 120 229 240 240 240 151 105 51 58 Slowest Speed 2435 | 120 240 240 240 240 410 115 150 2435 Overloaded Moves . | . . . . . . . . . Propulsion Burnouts . | . . . . . . . . . Robots Hopped 8 | . . . . . . . 8 . Cave-ins Triggered . | . . . . . . . . . Exploration Rate (%) 43 | 2 64 11 70 32 74 91 28 17 Regions Visited 8 Branch Regions 4 Pre-discovered Areas 4 | . . 1 1 . 2 . . . Known Exits Taken 1 | . . . . . 1 . . . Unknown Exits Taken 6 | 1 1 1 1 1 . . 1 . Scrap Searched 1 | . . . . 1 . . . . Spaces Dug 55 | . . . . 29 2 . 23 1 Terrain Destroyed 67 | . 9 . . 29 5 . 23 1 Melee 26 | . . . . . 2 . 23 1 Projectile 3 | . . . . . 3 . . . AOE 38 | . 9 . . 29 . . . . Terrain Rammed . | . . . . . . . . . Walls Destroyed . | . . . . . . . . . Machines Disabled . | . . . . . . . . . Actions | -11 -10 -10 -10 -9 -8 -8 -7 -7 --------- Run | Yrd Mat Min Exi Min Mat Gar Fac Sto Total 8192 | . 434 32 271 140 2205 2248 2656 206 Wait 1248 | . 19 . . 7 771 81 342 28 Move 6014 | . 345 32 267 127 1215 1790 2103 135 Hop 8 | . . . . . . . 8 . Pick Up 98 | . 8 . 4 1 28 30 25 2 Fast Attach 31 | . 2 . . . 8 3 16 2 Attach 56 | . 2 . . . 14 16 16 8 Detach 16 | . . . . . 7 2 5 2 Swap 71 | . 2 . . 1 16 25 21 6 Drop 101 | . 3 . . 1 33 27 32 5 Fire 213 | . 53 . . 3 63 50 41 3 Melee 178 | . . . . . 40 76 47 15 Ram . | . . . . . . . . . Kick . | . . . . . . . . . Crush 1 | . . . . . 1 . . . Escape Stasis 17 | . . . . . . 17 . . Rewire 1 | . . . . . . 1 . . Trap 70 | . . . . . 9 61 . . Miscellaneous 69 | . . . . . . 69 . . Route ------- -11/Scrapyard -10/Materials (discovered 3 exits: [*Mat x2] / [*Min]) -10/Mines -10/Exiles (discovered 2 exits: [*Min x2]) -9/Mines -8/Materials (discovered 4 exits: *Fac x3 / Gar) -8/Garrison (discovered 3 exits: *Fac x3) -7/Factory (discovered 3 exits: *Fac x2 / *Sto) -7/Storage History --------- Turn | Location | Event 1 | -11/Scrapyard | Discovered new exit (range 0) 1 | -11/Scrapyard | Entered Materials 19 | -10/Materials | Discovered new exit (range 15) 261 | -10/Materials | Discovered new exit (range 12) 305 | -10/Materials | Build established: Mutant 546 | -10/Materials | Discovered new exit (range 16) 974 | -10/Materials | Entered Mines 975 | -10/Mines | Learned location of Storage (-7) 1042 | -10/Mines | Deemed a non-threat by the Exiles lab entrance 1042 | -10/Mines | Discovered new exit (range 5) 1051 | -10/Mines | Entered Exiles 1108 | -10/Exiles | Discovered new exit (range 17) 1131 | -10/Exiles | Met 8R-AWN 1165 | -10/Exiles | Met EX-HEX 1237 | -10/Exiles | Met EX-BIN 1273 | -10/Exiles | Aligned with FarCom system 1275 | -10/Exiles | Given EX-Vault access code 1330 | -10/Exiles | Opened EX-Vault 1345 | -10/Exiles | Found Flying Fortress v7 1394 | -10/Exiles | Warned to stay clear of 0b10 Research branches 1540 | -10/Exiles | Met EX-DEC 1588 | -10/Exiles | Learned location of Zion (-7) 1677 | -10/Exiles | Discovered new exit (range 10) 1696 | -10/Exiles | Left Exiles lab with Flying Fortress v7 1696 | -10/Exiles | Entered Mines 1961 | -9/Mines | Discovered new exit (range 13) 2017 | -9/Mines | Entered Materials 2017 | -8/Materials | Evolved 4 slots: Propulsion x2, Utility x2 2639 | -8/Materials | Build established: Hacker-Mutant 3638 | -8/Materials | Discovered new exit (range 12) 4010 | -8/Materials | Discovered new exit (range 13) 4502 | -8/Materials | Learned 4 Recycling zone layouts 4532 | -8/Materials | Learned Factory repair station intel 4563 | -8/Materials | Learned Factory stockpile data 4566 | -8/Materials | Learned location of 2 exits from Factory 4567 | -8/Materials | Learned Storage stockpile data 4568 | -8/Materials | Learned Storage emergency access door positions 4569 | -8/Materials | Identified exit to Factory 4571 | -8/Materials | Learned Factory trap positions 4583 | -8/Materials | Learned location of 2 exits from Lower Caves 4859 | -8/Materials | Identified exit to Garrison 5026 | -8/Materials | Entered Garrison 5026 | -8/Garrison | Accompanied by 1 ally 5074 | -8/Garrison | Triggered checkpoint 5268 | -8/Garrison | Triggered checkpoint 5318 | -8/Garrison | Core integrity fell below 50% 5348 | -8/Garrison | Triggered checkpoint 5402 | -8/Garrison | Triggered checkpoint 5434 | -8/Garrison | Triggered checkpoint 6009 | -8/Garrison | Discovered exit to Factory (range 11) 6038 | -8/Garrison | Triggered checkpoint 6316 | -8/Garrison | Triggered checkpoint 6373 | -8/Garrison | Discovered exit to Factory (range 9) 6422 | -8/Garrison | Installed Relay Interface Framework 6503 | -8/Garrison | Phase Generator disabled 6701 | -8/Garrison | Core integrity fell below 20% 6881 | -8/Garrison | Discovered exit to Factory (range 10) 6894 | -8/Garrison | Spotted B-75 Beast 6912 | -8/Garrison | Triggered checkpoint 6933 | -8/Garrison | Garrison Relay disabled 7114 | -8/Garrison | Garrison Relay disabled 7211 | -8/Garrison | Garrison Relay disabled 7402 | -8/Garrison | Garrison Relay disabled 7447 | -8/Garrison | Garrison Relay disabled 7459 | -8/Garrison | Garrison Relay disabled 7486 | -8/Garrison | Garrison Relay disabled 7720 | -8/Garrison | Entered Factory 7720 | -7/Factory | Evolved 2 slots: Propulsion x1, Utility x1 7721 | -7/Factory | Identified exit to Factory 7722 | -7/Factory | Loaded intel: 107 trap records 7724 | -7/Factory | Loaded intel: 6 repair station locations 7782 | -7/Factory | Discovered new exit (range 9) 8042 | -7/Factory | Build established: Mutant 8670 | -7/Factory | Build established: Bothacker-Mutant 8797 | -7/Factory | System corruption reached 10% 8822 | -7/Factory | P-60 Hacker assimilated allied Informer 4a 9084 | -7/Factory | Repaired Power Sword 9460 | -7/Factory | Entered Storage 9460 | -7/Storage | Accompanied by 1 ally 9607 | -7/Storage | Core integrity fell below 50% 9636 | -7/Storage | Self-destructed Last Messages --------------- 09588_ R-06 Scavenger collects VTOL Module. 09590_ Acquired VTOL Module. 09593_ System corrupted: Heat flow error (+244). 09593_ R-06 Scavenger collects VTOL Module. 09596_ Critical hit (Burn: +37). 09598_ Hrd. Heavy Armor Plating destroyed. 09604_ Cld. Deuterium Engine destroyed. 09605_ Force Booster destroyed. 09606_ M-13 Machinist repairs Lgt. Nuclear Core. 09609_ M-13 Machinist repairs G-47 Trooper. 09609_ VTOL Module destroyed. 09610_ Power Sword destroyed. 09612_ System corrupted: Energy discharge (-37). 09615_ Relay Coupler [NC] destroyed. 09618_ M-13 Machinist fits Backup Laser I on G-47 Trooper. 09623_ R-06 Scavenger collects Corrupted Machine Analyzer. 09624_ Lyr. Light Armor Plating destroyed. 09626_ R-06 Scavenger collects Com. Wheel. 09630_ K|I822S=2H1V|OJYA%Y9SYOD2VCG16QUDWLLRQO 09636_ Flying Fortress v7 destroyed. Map ----- +----------------------------------------------------+ | ?????????????????????????????????????????????????? | | ?????????????????????????????????????????????????? | | ?????????????????????????????????????????????????! | | ???????????????????????? ????????????????????????? | | ????????????????? ???? #???????????????????????? | | ????????????????# ???? #???????????????????????? | | ????????????????# ???? ???????????????????????? | | ????????????????# ??? ????????????????#??????? | | ????????????????/ ??? ?????????????#####+#####? | | ????????????????# ??? ?????????????#! !+? | | ????????????????# ??? ?????????????# #? | | ????????????????# #?? #?????????????# ! / #? | | ????????????????# #?? #?????????????# #? | | ????????????????# #?? #???????????#####+#######? | | ????????????????# ###+#######??#### #???? | | ????????????????# + ? #??# "" #???? | | ????????????????# # """"" #??#""" """#???? | | ????????????????# # ][["% #??#"T """#???? | | ????????????????# g+gg""""" #??#""" ! """#???? | | ????????????????# Y# " """ [ #??# "" """#???? | | ????????????????# # "*[= #??#### """#???? | | ????????????????# # """" %*[#?????# #???? | | ????????????????# # g [=%=#???### #???? | | ????????????????# %#####################/######?? | | ????????????????# s k a ^a #?? | | ????????????????# @ #?? | | ????????????????# ^^ #?? | | ????????????????############""T""###############?? | | ????????Y??????????????????#"""""#???????????????? | | ???????????????????????????#######???????????????? | | ?????????????????????????????????????????????????? | | ?????????????????????????????????????????????????? | | ?????????????????????????????????????????????????? | | ?????????????????????????????????????????????????? | | ?????????????????????????????????????????????????? | | ?????????????????????????????????????????????????? | | ?????????????????????????????????????????????????? | | ?????????????????????????????????????????????????? | | ?????????????????????????????????????????????????? | | ?????????????????????????????????????????????????? | | | | | | | | | | | | | | | | | | | | | +----------------------------------------------------+ Best States ------------- Heat Dissipation 34 Energy Generation 18 Energy Capacity 800 Matter Stores 300 Matter Capacity 300 Sight Range 20 Terrain Scan Density 10 Jamming Range 12 Additional Mass Support 9 Armor Coverage 600 Propulsion Shielding 33 Evasion (%) 62 Melee Accuracy 5 Recoil Reduction 3 Force Boost 20 Offensive Hacking 20 Defensive Hacking 10 Relay Coupler Types 3 Relay Coupler Value 66 Trap Extractor Capacity 4 Item Schematics ----------------- System Shield | -8/Materials | Scanalyzed Robot Schematics ------------------ None Fabricated ------------ Nothing Alien Tech Used ----------------- None Achievements -------------- None Challenges ------------ None Game ------ Seed HeartBiocellManipulator Manual? 0 Play Time 02:05:39 Cumulative 108.0 hours Start 2024.11.17 @ 19:18:14 End 2024.11.17 @ 21:46:36 Sessions 11 Manual Loads 0 Difficulty Rogue Special Mode None Game No. 191 Rogue 191 Adventurer 0 Explorer 0 Win Type - Total 0 Types 0/0/0/0/0/0/0/0/0 Lore% 42 Gallery% 40 Achievement% 35 Wizard Run 0 Options --------- Layout 0 ASCII 0 Keyboard 0 Movement Mouse Keybinds 0 Fullscreen 1 Font 24/Cog Map View 91x25 Zoom Use 84% Tactical HUD 1 Map Filters NONE Filters NONE Steam 1 RUN: a9585aad-04ce-49fb-98a5-f25552b81875